fUST/lending_fUST_20250602
["ID","MTS","AMOUNT","RATE_DAILY","PERIOD"]
[363658282,1748800250763,-800.0,0.00022184,2]
[363658283,1748800250773,-800.0,0.00022184,2]
[363658285,1748800250782,-300.0,0.00022184,2]
[363658287,1748800250792,-800.0,0.00022184,2]
[363658289,1748800250801,-300.0,0.00022184,2]
[363658290,1748800250811,-800.0,0.00022184,2]
[363658291,1748800250820,-300.0,0.00022184,2]
[363658292,1748800250830,-300.0,0.00022184,2]
[363658293,1748800250839,-800.0,0.00022184,2]
[363658294,1748800250848,-300.0,0.00022184,2]
[363658295,1748800250857,-800.0,0.00022184,2]
[363658296,1748800250868,-800.0,0.00022184,2]
[363658297,1748800250877,-300.0,0.00022184,2]
[363658298,1748800250886,-300.0,0.00022184,2]
[363658299,1748800250895,-800.0,0.00022184,2]
[363658300,1748800250904,-300.0,0.00022184,2]
[363658301,1748800250913,-800.0,0.00022184,2]
[363658302,1748800250923,-800.0,0.00022184,2]
[363658303,1748800250932,-300.0,0.00022184,2]
[363658304,1748800250942,-800.0,0.00022184,2]
[363658305,1748800250952,-300.0,0.00022184,2]
[363658306,1748800250961,-300.0,0.00022184,2]
[363658307,1748800250971,-800.0,0.00022184,2]
[363658308,1748800250980,-300.0,0.00022184,2]
[363658309,1748800250990,-800.0,0.00022184,2]
[363658310,1748800250999,-300.0,0.00022184,2]
[363658311,1748800251009,-800.0,0.00022184,2]
[363658312,1748800251018,-300.0,0.00022184,2]
[363658313,1748800251028,-5000.0,0.00022184,2]
[363658314,1748800251038,-800.0,0.00022184,2]
[363658315,1748800251048,-2000.0,0.00022191,2]
[363658316,1748800251058,-1583.33,0.00022191,2]
[363658317,1748800251068,-505.74,0.00022191,2]
[363658318,1748800251078,-773.78,0.00022191,2]
[363658319,1748800251088,-469.54,0.00022191,2]
[363658320,1748800251098,-705.3,0.00022191,2]
[363658321,1748800251107,-798.38,0.00022191,2]
[363658322,1748800251117,-537.89,0.00022191,2]
[363658323,1748800251126,-1192.28,0.00022191,2]
[363658324,1748800251136,-741.74,0.00022191,2]
[363658325,1748800251146,-1144.57,0.00022191,2]
[363658326,1748800251155,-3437.60975399,0.0002221,6]
[363658327,1748800251165,-9859.40490574,0.00022252,2]
[363658328,1748800251175,-5000.0,0.00022252,2]
[363658329,1748800251184,-5000.0,0.00022252,2]
[363658330,1748800251194,-5000.0,0.00022252,2]
[363658331,1748800251204,-5000.0,0.00022252,2]
[363658332,1748800251216,-500.0,0.00022259,2]
[363658333,1748800251226,-150.0,0.0002226,2]
[363658334,1748800251236,-151.0,0.000223,9]
[363658335,1748800251246,-168.21129388,0.00022365,2]
[363658336,1748800251255,-3437.60975399,0.00022452,7]
[363658337,1748800251265,-308.32,0.00022465,2]
[363658338,1748800251275,-1583.33,0.00022465,2]
[363658339,1748800251285,-505.74,0.00022465,2]
[363658340,1748800251295,-773.78,0.00022465,2]
[363658341,1748800251305,-469.54,0.00022465,2]
[363658342,1748800251315,-705.3,0.00022465,2]
[363658343,1748800251324,-798.38,0.00022465,2]
[363658344,1748800251334,-537.89,0.00022465,2]
[363658345,1748800251343,-1192.28,0.00022465,2]
[363658346,1748800251353,-741.74,0.00022465,2]
[363658347,1748800251364,-1144.57,0.00022465,2]
[363658348,1748800251374,-3437.60975399,0.00022693,7]
[363658349,1748800251384,-276.74373577,0.00022729,2]
[363658350,1748800251394,-5000.0,0.00022732,2]
[363658351,1748800251404,-1583.41,0.00022739,2]
[363658352,1748800251414,-505.83494419,0.00022739,2]
[363658353,1748800251424,-773.97932414,0.00022739,2]
[363658354,1748800251434,-469.57577583,0.00022739,2]
[363658355,1748800251444,-705.51032006,0.00022739,2]
[363658356,1748800251454,-798.48978705,0.00022739,2]
[363658357,1748800251463,-537.93,0.00022739,2]
[363658358,1748800251475,-1192.388187,0.00022739,2]
[363658359,1748800251486,-741.76591596,0.00022739,2]
[363658360,1748800251496,-1144.73999999,0.00022739,2]
[363658361,1748800251506,-250.0,0.00022808,2]
[363658362,1748800251516,-756.1293646,0.00022849,2]
[363658363,1748800251526,-364.3782178,0.00022849,2]
[363658364,1748800251535,-364.3782178,0.00022849,2]
[363658365,1748800251545,-3437.60975399,0.00022934,8]
[363658366,1748800251555,-176.4890519,0.00022986,2]
[363658367,1748800251566,-306.0,0.00022986,2]
[363658368,1748800251576,-154.4189384,0.00022986,2]
[363658369,1748800251586,-820.0506332,0.00022986,2]
[363658370,1748800251596,-151.0,0.00023,7]
[363658371,1748800251610,-952.0,0.00023,3]
[363658372,1748800251619,-952.0,0.00023,3]
[363658373,1748800251629,-952.0,0.00023,3]
[363658374,1748800251639,-952.0,0.00023,3]
[363658375,1748800251650,-952.0,0.00023,3]
[363658376,1748800251660,-952.0,0.00023,3]
[363658377,1748800251670,-952.0,0.00023,3]
[363658378,1748800251681,-952.0,0.00023,3]
[363658380,1748800251690,-952.0,0.00023,3]
[363658382,1748800251700,-952.0,0.00023,3]
[363658384,1748800251710,-151.0,0.00023,7]
[363658386,1748800251720,-151.0,0.00023,7]
[363658388,1748800251730,-151.0,0.00023,7]
[363658390,1748800251741,-423.51412927,0.00023,3]
[363658392,1748800251751,-229.3709046,0.00023,3]
[363658394,1748800251761,-160.0,0.00023,3]
[363658396,1748800251771,-160.0,0.00023,3]
[363658398,1748800251780,-151.0,0.00023,7]
[363658400,1748800251789,-151.0,0.00023,7]
[363658402,1748800251799,-151.0,0.00023,7]
[363658404,1748800251808,-151.0,0.00023,7]
[363658406,1748800251818,-198.0,0.00023014,7]
[363658408,1748800251827,-155.3651621,0.00023041,2]
[363658410,1748800251837,-572.3927371,0.00023041,2]
[363658412,1748800251847,-326.4381982,0.00023041,2]
[363658414,1748800251856,-439.9855199,0.00023041,2]
[363658416,1748800251865,-176.4890519,0.00023041,2]
[363658418,1748800251875,-158.4848398,0.00023041,2]
[363658420,1748800251885,-151.0,0.000231,10]
[363658422,1748800251895,-8794.89119608,0.000231,2]
[363658429,1748800252018,-432.34794334,0.000231,2]
[363658431,1748800252030,-5348.59681349,0.000231,2]
[363658434,1748800252056,-426.67060066,0.00016438,2]
[363658436,1748800252066,-400.0,0.00016438,2]
[363658438,1748800252076,-10278.62404709,0.000231,2]
[363658439,1748800252085,-315.926286,0.00023115,2]
[363658440,1748800252095,-3437.60975399,0.00023176,8]
[363658441,1748800252105,-30391.77,0.00023246,6]
[363658442,1748800252115,-5000.0,0.0002328,2]
[363658443,1748800252125,-151.0,0.0002328,2]
[363658444,1748800252135,-8876.48501792,0.00023297,6]
[363658445,1748800252147,-3290.77000001,0.00023297,6]
[363658446,1748800252158,-1050.24555412,0.00023297,6]
[363658447,1748800252609,-500.0,0.00016429,2]
[363658448,1748800252620,-500.0,0.00016429,2]
[363658449,1748800252630,-500.0,0.00016429,2]
[363658450,1748800252640,-500.0,0.00016429,2]
[363658451,1748800252650,-500.0,0.00016429,2]
[363658452,1748800252659,-500.0,0.00016429,2]
[363658453,1748800252670,-439.72126762,0.00016429,2]
[363658454,1748800252682,-500.0,0.00016429,2]
[363658455,1748800252692,-414.59588258,0.00016429,2]
[363658456,1748800252702,-500.0,0.00016429,2]
[363658457,1748800252712,-500.0,0.00016429,2]
[363658458,1748800252722,-500.0,0.00016429,2]
[363658459,1748800252731,-500.0,0.00016429,2]
[363658460,1748800252741,-448.42474342,0.00016429,2]
[363658461,1748800252751,-500.0,0.00016429,2]
[363658462,1748800252761,-500.0,0.00016429,2]
[363658463,1748800252771,-500.0,0.00016429,2]
[363658464,1748800252780,-500.0,0.00016429,2]
[363658465,1748800252791,-500.0,0.00016429,2]
[363658466,1748800252800,-366.34225438,0.00016429,2]
[363658467,1748800252816,-133.65774562,0.00016429,2]
[363658468,1748800252827,-500.0,0.00016429,2]
[363658469,1748800252837,-565.77499288,0.00016429,2]
[363658470,1748800252847,-500.0,0.00016429,2]
[363658471,1748800252857,-268.99670683,0.00016429,2]
[363658472,1748800252867,-477.44993302,0.00016429,2]
[363658473,1748800252876,-500.0,0.00016429,2]
[363658474,1748800252886,-500.0,0.00016429,2]
[363658475,1748800252896,-500.0,0.00016429,2]
[363658476,1748800252905,-500.0,0.00016429,2]
[363658477,1748800252915,-500.0,0.00016429,2]
[363658478,1748800252925,-500.0,0.00016429,2]
[363658479,1748800252936,-500.0,0.00016429,2]
[363658480,1748800252946,-500.0,0.00016429,2]
[363658481,1748800252956,-500.0,0.00016429,2]
[363658482,1748800252966,-500.0,0.00016429,2]
[363658483,1748800252976,-500.0,0.00016429,2]
[363658484,1748800252986,-300.0,0.00016437,2]
[363658485,1748800252996,-507.52922009,0.00016438,2]
[363658486,1748800253006,-449.12365192,0.00016438,2]
[363658487,1748800253015,-430.0,0.00016438,2]
[363658488,1748800253026,-420.0,0.00017963,2]
[363658489,1748800253036,-500.0,0.00019178,2]
[363658490,1748800253046,-500.0,0.00019178,2]
[363658491,1748800253056,-500.0,0.00019178,2]
[363658492,1748800253066,-500.0,0.00019178,2]
[363658493,1748800253076,-500.0,0.00019178,2]
[363658494,1748800253086,-500.0,0.00019178,2]
[363658495,1748800253096,-500.0,0.00019178,2]
[363658496,1748800253106,-627.33714351,0.00019178,2]
[363658497,1748800253117,-500.0,0.00019178,2]
[363658498,1748800253127,-500.0,0.00019178,2]
[363658499,1748800253137,-500.0,0.00019178,2]
[363658500,1748800253147,-500.0,0.00019178,2]
[363658501,1748800253157,-500.0,0.00019178,2]
[363658502,1748800253166,-500.0,0.00019178,2]
[363658503,1748800253176,-500.0,0.00019178,2]
[363658504,1748800253186,-500.0,0.00019178,2]
[363658505,1748800253196,-500.0,0.00019178,2]
[363658506,1748800253206,-500.0,0.00019178,2]
[363658507,1748800253216,-500.0,0.00019178,2]
[363658508,1748800253226,-500.0,0.00019178,2]
[363658509,1748800253236,-500.0,0.00019178,2]
[363658510,1748800253247,-500.0,0.00019178,2]
[363658511,1748800253257,-500.0,0.00019178,2]
[363658512,1748800253267,-500.0,0.00019178,2]
[363658513,1748800253277,-411.0,0.00019631,2]
[363658514,1748800253287,-40.65941946,0.00023041,2]
[363658515,1748800253405,255.70765074,0.00015492,2]
[363658522,1748800268774,180.710946,0.00013699,2]
[363658523,1748800272035,1764.2803935,0.00015433,2]
[363658531,1748800413932,24900.0,0.00015501,2]
[363658532,1748800438128,32.59716407,0.0001555,2]
[363658534,1748800462570,3183.90849567,0.00024657,120]
[363658606,1748800553774,255.70765073,0.00015449,2]
[363658608,1748800626432,4967.40283593,0.0001552,2]
[363658610,1748800671701,299.48602011,6.8e-07,2]
[363658624,1748801232331,-160.0,0.0001555,2]
[363658625,1748801232353,-779.77429546,0.00015624,2]
[363658627,1748801265858,3571.2835004,0.00015084,2]
[363658632,1748801344918,227.295911,0.00013699,2]
[363658663,1748801432259,-207.53191887,0.00015898,2]
[363658666,1748801432271,-157.06937739,0.00015934,2]
[363658668,1748801432282,-300.0,0.00015996,2]
[363658670,1748801432292,-300.0,0.00015996,2]
[363658672,1748801432302,-1200.0,0.00015996,2]
[363658674,1748801432313,-300.0,0.00015996,2]
[363658676,1748801432323,-160.0,0.00015997,2]
[363658678,1748801432333,-23821.40851303,0.00015997,2]
[363658680,1748801432345,-4396.19198468,0.00015997,2]
[363658707,1748801437975,-500.0,0.00015996,2]
[363658710,1748801437985,-160.9360826,0.00015996,2]
[363658712,1748801437995,-500.0,0.00015996,2]
[363658714,1748801438007,-500.0,0.00015996,2]
[363658716,1748801438016,-538.34905245,0.00015996,2]
[363658718,1748801438025,-194.31691311,0.00015996,2]
[363658720,1748801438034,-451.75277699,0.00015996,2]
[363658722,1748801438043,-258.11360058,0.00015996,2]
[363658724,1748801438053,-500.0,0.00015996,2]
[363658726,1748801438061,-538.34905245,0.00015996,2]
[363658728,1748801438071,-544.66994544,0.00015996,2]
[363658730,1748801438080,-500.0,0.00015996,2]
[363658732,1748801438089,-500.0,0.00015996,2]
[363658734,1748801438099,-140.00595091,0.00015996,2]
[363658736,1748801438111,-398.34310154,0.00015996,2]
[363658738,1748801438120,-500.0,0.00015996,2]
[363658740,1748801438129,-538.34905245,0.00015996,2]
[363658742,1748801438138,-500.0,0.00015996,2]
[363658744,1748801438148,-500.0,0.00015996,2]
[363658746,1748801438157,-538.34905245,0.00015996,2]
[363658748,1748801438166,-500.0,0.00015996,2]
[363658750,1748801438176,-500.0,0.00015996,2]
[363658752,1748801438191,-538.34905245,0.00015996,2]
[363658754,1748801438200,-500.0,0.00015996,2]
[363658756,1748801438209,-538.34905245,0.00015996,2]
[363658758,1748801438219,-500.0,0.00015996,2]
[363658760,1748801438228,-500.0,0.00015996,2]
[363658762,1748801438237,-538.34905245,0.00015996,2]
[363658764,1748801438248,-500.0,0.00015996,2]
[363658766,1748801438256,-500.0,0.00015996,2]
[363658768,1748801438265,-500.0,0.00015996,2]
[363658770,1748801438274,-538.34905245,0.00015996,2]
[363658772,1748801438284,-500.0,0.00015996,2]
[363658774,1748801438293,-538.34905245,0.00015996,2]
[363658776,1748801438303,-197.7449933,0.00015996,2]
[363658778,1748801438312,-500.0,0.00015996,2]
[363658780,1748801438322,-538.34905245,0.00015996,2]
[363658782,1748801438331,-500.0,0.00015996,2]
[363658784,1748801438340,-538.34905245,0.00015996,2]
[363658786,1748801438350,-500.0,0.00015996,2]
[363658788,1748801438359,-538.34905245,0.00015996,2]
[363658790,1748801438369,-500.0,0.00015996,2]
[363658792,1748801438378,-538.34905245,0.00015996,2]
[363658794,1748801438388,-500.0,0.00015996,2]
[363658796,1748801438397,-538.34905245,0.00015996,2]
[363658798,1748801438406,-500.0,0.00015996,2]
[363658800,1748801438416,-538.34905245,0.00015996,2]
[363658802,1748801438425,-500.0,0.00015996,2]
[363658804,1748801438435,-538.34905245,0.00015996,2]
[363658806,1748801438444,-538.34905245,0.00015996,2]
[363658808,1748801438454,-500.0,0.00015996,2]
[363658810,1748801438463,-538.34905245,0.00015996,2]
[363658812,1748801438472,-500.0,0.00015996,2]
[363658814,1748801438482,-538.34905245,0.00015996,2]
[363658816,1748801438491,-500.0,0.00015996,2]
[363658818,1748801438502,-500.0,0.00015996,2]
[363658820,1748801438515,-538.34905245,0.00015996,2]
[363658822,1748801438525,-500.0,0.00015996,2]
[363658824,1748801438535,-538.34905245,0.00015996,2]
[363658826,1748801438545,-500.0,0.00015996,2]
[363658828,1748801438555,-311.05964774,0.00015996,2]
[363658830,1748801438565,-538.34905245,0.00015996,2]
[363658832,1748801438575,-500.0,0.00015996,2]
[363658834,1748801438585,-500.0,0.00015996,2]
[363658836,1748801438595,-538.34905245,0.00015996,2]
[363658838,1748801438605,-500.0,0.00015996,2]
[363658840,1748801438614,-538.34905245,0.00015996,2]
[363658842,1748801438623,-500.0,0.00015996,2]
[363658844,1748801438633,-538.34905245,0.00015996,2]
[363658846,1748801438642,-538.34905245,0.00015996,2]
[363658848,1748801438652,-500.0,0.00015996,2]
[363658850,1748801438662,-538.34905245,0.00015996,2]
[363658852,1748801438671,-500.0,0.00015996,2]
[363658854,1748801438681,-538.34905245,0.00015996,2]
[363658856,1748801438691,-538.34905245,0.00015996,2]
[363658858,1748801438700,-500.0,0.00015996,2]
[363658860,1748801438710,-538.34905245,0.00015996,2]
[363658862,1748801438721,-538.34905245,0.00015996,2]
[363658864,1748801438730,-538.34905245,0.00015996,2]
[363658866,1748801438740,-538.34905245,0.00015996,2]
[363658868,1748801438750,-538.34905245,0.00015996,2]
[363658871,1748801438761,-538.34905245,0.00015996,2]
[363658873,1748801438771,-538.34905245,0.00015996,2]
[363658875,1748801438781,-538.34905245,0.00015996,2]
[363658877,1748801438790,-500.0,0.00015996,2]
[363658879,1748801438799,-500.0,0.00015996,2]
[363658881,1748801438808,-500.0,0.00015996,2]
[363658883,1748801438818,-538.34905245,0.00015996,2]
[363658885,1748801438827,-500.0,0.00015996,2]
[363658887,1748801438836,-538.34905245,0.00015996,2]
[363658889,1748801438845,-500.0,0.00015996,2]
[363658891,1748801438854,-538.34905245,0.00015996,2]
[363658893,1748801438863,-538.34905245,0.00015996,2]
[363658895,1748801438874,-500.0,0.00015996,2]
[363658896,1748801438883,-538.34905245,0.00015996,2]
[363658898,1748801438892,-538.34905245,0.00015996,2]
[363658900,1748801438902,-500.0,0.00015996,2]
[363658902,1748801438911,-233.21672403,0.00015996,2]
[363658905,1748801438922,-538.34905245,0.00015996,2]
[363658907,1748801438932,-538.34905245,0.00015996,2]
[363658908,1748801438940,-500.0,0.00015996,2]
[363658910,1748801438950,-500.0,0.00015996,2]
[363658912,1748801438959,-538.34905245,0.00015996,2]
[363658914,1748801438969,-538.34905245,0.00015996,2]
[363658916,1748801438978,-500.0,0.00015996,2]
[363658918,1748801438987,-538.34905245,0.00015996,2]
[363658920,1748801438997,-500.0,0.00015996,2]
[363658922,1748801439007,-538.34905245,0.00015996,2]
[363658924,1748801439016,-538.34905245,0.00015996,2]
[363658926,1748801439026,-538.34905245,0.00015996,2]
[363658928,1748801439035,-538.34905245,0.00015996,2]
[363658930,1748801439044,-538.34905245,0.00015996,2]
[363658932,1748801439054,-538.34905245,0.00015996,2]
[363658934,1748801439063,-538.34905245,0.00015996,2]
[363658936,1748801439072,-538.34905245,0.00015996,2]
[363658939,1748801439083,-538.34905245,0.00015996,2]
[363658940,1748801439092,-538.34905245,0.00015996,2]
[363658943,1748801439102,-538.34905245,0.00015996,2]
[363658945,1748801439111,-538.34905245,0.00015996,2]
[363658946,1748801439121,-21782.39950229,0.00015997,2]
[363658947,1748801439130,-300.0,0.00015997,2]
[363658948,1748801439140,-34050.03747632,0.00016,2]
[363658949,1748801439150,-160.0,0.00016425,2]
[363658950,1748801439159,-430.0,0.00016438,2]
[363658951,1748801439169,-430.0,0.00016438,2]
[363658952,1748801439179,-430.0,0.00016438,2]
[363658953,1748801439189,-430.0,0.00016438,2]
[363658954,1748801439198,-430.0,0.00016438,2]
[363658956,1748801439207,-430.0,0.00016438,2]
[363658958,1748801439217,-430.0,0.00016438,2]
[363658960,1748801439226,-430.0,0.00016438,2]
[363658962,1748801439235,-430.0,0.00016438,2]
[363658964,1748801439244,-430.0,0.00016438,2]
[363658966,1748801439254,-430.0,0.00016438,2]
[363658968,1748801439264,-430.0,0.00016438,2]
[363658970,1748801439273,-430.0,0.00016438,2]
[363658971,1748801439283,-430.0,0.00016438,2]
[363658973,1748801439293,-430.0,0.00016438,2]
[363658975,1748801439303,-430.0,0.00016438,2]
[363658977,1748801439314,-430.0,0.00016438,2]
[363658980,1748801439324,-170.95425483,0.00016438,2]
[363658982,1748801439334,-430.0,0.00016438,2]
[363658984,1748801439343,-430.0,0.00016438,2]
[363658986,1748801439354,-430.0,0.00016438,2]
[363658988,1748801439366,-430.0,0.00016438,2]
[363658990,1748801439375,-430.0,0.00016438,2]
[363658992,1748801439385,-440.0,0.00016438,2]
[363658994,1748801439395,-430.0,0.00016438,2]
[363658996,1748801439404,-430.0,0.00016438,2]
[363658998,1748801439413,-430.0,0.00016438,2]
[363659000,1748801439423,-430.0,0.00016438,2]
[363659002,1748801439433,-430.0,0.00016438,2]
[363659004,1748801439442,-276.68748651,0.00016438,2]
[363659006,1748801439452,-430.0,0.00016438,2]
[363659008,1748801439462,-430.0,0.00016438,2]
[363659010,1748801439471,-430.0,0.00016438,2]
[363659012,1748801439481,-430.0,0.00016438,2]
[363659014,1748801439491,-430.0,0.00016438,2]
[363659016,1748801439500,-524.59,0.00016438,2]
[363659018,1748801439514,-430.0,0.00016438,2]
[363659020,1748801439524,-288.0,0.00016438,2]
[363659022,1748801439533,-430.0,0.00016438,2]
[363659024,1748801439543,-430.0,0.00016438,2]
[363659026,1748801439553,-374.93055772,0.00016438,2]
[363659028,1748801439563,-430.0,0.00016438,2]
[363659030,1748801439572,-430.0,0.00016438,2]
[363659032,1748801439581,-430.0,0.00016438,2]
[363659034,1748801439591,-430.0,0.00016438,2]
[363659036,1748801439600,-430.0,0.00016438,2]
[363659038,1748801439610,-430.0,0.00016438,2]
[363659040,1748801439619,-430.0,0.00016438,2]
[363659042,1748801439629,-430.0,0.00016438,2]
[363659044,1748801439639,-364.48965599,0.00016438,2]
[363659047,1748801439649,-430.0,0.00016438,2]
[363659050,1748801439658,-497.0,0.00016438,2]
[363659052,1748801439667,-430.0,0.00016438,2]
[363659054,1748801439676,-430.0,0.00016438,2]
[363659056,1748801439686,-416.38726602,0.00016438,2]
[363659058,1748801439695,-694.84,0.00016438,2]
[363659061,1748801439706,-430.0,0.00016438,2]
[363659064,1748801439716,-430.0,0.00016438,2]
[363659066,1748801439726,-430.0,0.00016438,2]
[363659068,1748801439736,-430.0,0.00016438,2]
[363659070,1748801439745,-430.0,0.00016438,2]
[363659072,1748801439757,-430.0,0.00016438,2]
[363659074,1748801439767,-430.0,0.00016438,2]
[363659076,1748801439777,-430.0,0.00016438,2]
[363659079,1748801439787,-430.0,0.00016438,2]
[363659081,1748801439796,-431.82125051,0.00016438,2]
[363659083,1748801439806,-430.0,0.00016438,2]
[363659085,1748801439816,-430.0,0.00016438,2]
[363659087,1748801439826,-430.0,0.00016438,2]
[363659089,1748801439836,-430.0,0.00016438,2]
[363659091,1748801439845,-430.0,0.00016438,2]
[363659093,1748801439855,-430.0,0.00016438,2]
[363659095,1748801439865,-430.0,0.00016438,2]
[363659097,1748801439875,-430.0,0.00016438,2]
[363659099,1748801439885,-500.0,0.00016438,2]
[363659101,1748801439895,-430.0,0.00016438,2]
[363659103,1748801439904,-430.0,0.00016438,2]
[363659105,1748801439914,-430.0,0.00016438,2]
[363659107,1748801439924,-430.0,0.00016438,2]
[363659109,1748801439933,-430.0,0.00016438,2]
[363659111,1748801439942,-430.0,0.00016438,2]
[363659113,1748801439951,-430.0,0.00016438,2]
[363659115,1748801439960,-430.0,0.00016438,2]
[363659117,1748801439970,-422.05714651,0.00016438,2]
[363659119,1748801439980,-430.0,0.00016438,2]
[363659121,1748801439989,-430.0,0.00016438,2]
[363659123,1748801440000,-402.16107037,0.00016438,2]
[363659125,1748801440010,-430.0,0.00016438,2]
[363659127,1748801440019,-430.0,0.00016438,2]
[363659129,1748801440029,-430.0,0.00016438,2]
[363659141,1748801440039,-430.0,0.00016438,2]
[363659143,1748801440165,-430.0,0.00016438,2]
[363659144,1748801440176,-430.0,0.00016438,2]
[363659145,1748801440185,-430.0,0.00016438,2]
[363659146,1748801440195,-430.0,0.00016438,2]
[363659147,1748801440204,-430.0,0.00016438,2]
[363659148,1748801440214,-430.0,0.00016438,2]
[363659149,1748801440224,-400.0,0.00016438,2]
[363659150,1748801440233,-430.0,0.00016438,2]
[363659151,1748801440243,-430.0,0.00016438,2]
[363659152,1748801440253,-430.0,0.00016438,2]
[363659153,1748801440263,-430.0,0.00016438,2]
[363659154,1748801440273,-430.0,0.00016438,2]
[363659155,1748801440282,-430.0,0.00016438,2]
[363659156,1748801440292,-430.0,0.00016438,2]
[363659157,1748801440302,-430.0,0.00016438,2]
[363659158,1748801440311,-430.0,0.00016438,2]
[363659159,1748801440321,-533.82,0.00016438,2]
[363659160,1748801440330,-430.0,0.00016438,2]
[363659161,1748801440339,-500.0,0.00016438,2]
[363659162,1748801440348,-430.0,0.00016438,2]
[363659163,1748801440357,-430.0,0.00016438,2]
[363659164,1748801440367,-843.3,0.00016438,2]
[363659165,1748801440376,-430.0,0.00016438,2]
[363659166,1748801440385,-509.3,0.00016438,2]
[363659167,1748801440395,-430.0,0.00016438,2]
[363659168,1748801440406,-430.0,0.00016438,2]
[363659169,1748801440415,-259.88735629,0.00016438,2]
[363659170,1748801440426,-430.0,0.00016438,2]
[363659171,1748801440435,-641.22,0.00016438,2]
[363659172,1748801440445,-430.97166421,0.00016438,2]
[363659173,1748801440454,-430.0,0.00016438,2]
[363659174,1748801440463,-602.19,0.00016438,2]
[363659175,1748801440473,-351.59836862,0.00016438,2]
[363659176,1748801440483,-430.0,0.00016438,2]
[363659178,1748801440492,-629.18,0.00016438,2]
[363659180,1748801440504,-430.0,0.00016438,2]
[363659182,1748801440516,-430.0,0.00016438,2]
[363659183,1748801440526,-154.83445518,0.00016438,2]
[363659185,1748801440535,-346.08133367,0.00016438,2]
[363659187,1748801440547,-430.0,0.00016438,2]
[363659189,1748801440556,-2103.49085926,0.00016615,2]
[363659191,1748801440565,-500.0,0.00016709,2]
[363659193,1748801440574,-861.79044371,0.00016709,2]
[363659195,1748801440585,-861.79044371,0.00016709,2]
[363659197,1748801440595,-861.79044371,0.00016709,2]
[363659199,1748801440605,-637.03953566,0.00016709,2]
[363659201,1748801440615,-861.79044371,0.00016709,2]
[363659203,1748801440624,-861.79044371,0.00016709,2]
[363659205,1748801440633,-861.79044371,0.00016709,2]
[363659207,1748801440643,-861.79044371,0.00016709,2]
[363659209,1748801440653,-861.79044371,0.00016709,2]
[363659211,1748801440662,-861.79044371,0.00016709,2]
[363659213,1748801440672,-861.79044371,0.00016709,2]
[363659215,1748801440682,-861.79044371,0.00016709,2]
[363659217,1748801440691,-861.79044371,0.00016709,2]
[363659219,1748801440700,-861.79044371,0.00016709,2]
[363659221,1748801440709,-861.79044371,0.00016709,2]
[363659223,1748801440719,-861.79044371,0.00016709,2]
[363659225,1748801440728,-861.79044371,0.00016709,2]
[363659227,1748801440738,-430.0,0.00016712,2]
[363659229,1748801440750,-430.0,0.00016712,2]
[363659231,1748801440760,-430.0,0.00016712,2]
[363659233,1748801440769,-430.0,0.00016712,2]
[363659235,1748801440779,-694.84,0.00016712,2]
[363659237,1748801440788,-430.0,0.00016712,2]
[363659239,1748801440797,-430.0,0.00016712,2]
[363659241,1748801440807,-430.0,0.00016712,2]